[Event "Championnat du monde jeunes U12"]
[Date "2024.11.23"]
[White "Elhusseiny, Eyad"]
[Black "Yang, Maxwell"]
[WhiteElo "2017"]
[BlackElo "1889"]
[Round "8.26"]
[Result "1-0"]
[TimeControl "5400+30"]

1. Nf3 {[%clk 1:30:55]} 1... Nf6 {[%clk 1:30:35]} 2. c4 {[%clk 1:31:13]} 2... g6
{[%clk 1:31:02]} 3. Nc3 {[%clk 1:31:36]} 3... d5 {[%clk 1:31:26]} 4. cxd5 {[%clk
1:32:01]} 4... Nxd5 {[%clk 1:31:50]} 5. h4 {[%clk 1:31:54]} 5... Bg7 {[%clk
1:32:04]} 6. h5 {[%clk 1:31:50]} 6... O-O {[%clk 1:31:32]} 7. hxg6 {[%clk
1:31:46]} 7... hxg6 {[%clk 1:31:52]} 8. Qa4 {[%clk 1:31:56]} 8... e6 {[%clk
1:31:50]} 9. Qg4 {[%clk 1:31:29]} 9... e5 {[%clk 1:31:15]} 10. Qg3 {[%clk
1:31:45]} 10... Nf4 {[%clk 1:25:51]} 11. d3 {[%clk 1:24:48]} 11... Nh5 {[%clk
1:19:59]} 12. Qh2 {[%clk 1:22:58]} 12... Nc6 {[%clk 1:18:08]} 13. Bg5 {[%clk
1:16:25]} 13... f6 {[%clk 1:18:06]} 14. Be3 {[%clk 1:16:03]} 14... Kf7 {[%clk
1:17:09]} 15. O-O-O {[%clk 1:03:36]} 15... Nd4 {[%clk 0:35:38]} 16. Bxd4 {[%clk
0:54:37]} 16... exd4 {[%clk 0:34:57]} 17. Nb5 {[%clk 0:53:59]} 17... c5 {[%clk
0:34:55]} 18. Nh4 {[%clk 0:48:18]} 18... Bh6+ {[%clk 0:13:43]} 19. Kb1 {[%clk
0:48:29]} 19... Rg8 {[%clk 0:13:33]} 20. Nd6+ {[%clk 0:45:23]} 20... Ke7 {[%clk
0:12:17]} 21. Nxg6+ {[%clk 0:44:31]} 21... Rxg6 {[%clk 0:09:25]} 22. Qxh5 {[%clk
0:44:25]} 22... Qg8 {[%clk 0:08:39]} 23. Qxc5 {[%clk 0:44:35]} 23... Kd8 {[%clk
0:06:48]} 24. Qxd4 {[%clk 0:43:47]} 24... Bd7 {[%clk 0:06:49]} 25. Nxb7+ {[%clk
0:43:59]} 25... Ke8 {[%clk 0:07:00]} 26. Nc5 {[%clk 0:43:33]} 26... Rd8 {[%clk
0:07:11]} 27. Rxh6 {[%clk 0:42:34]} 27... Rxh6 {[%clk 0:06:33]} 28. Qe3+ {[%clk
0:42:59]} 28... Kf7 {[%clk 0:06:49]} 29. Qxh6 {[%clk 0:43:22]} 1-0

[Variant "Standard"]
[Site "Europe Echecs"]

[Event "Championnat du monde jeunes U12"]
[Date "2024.11.23"]
[White "Qu, Haoming"]
[Black "Xia, Jinnan"]
[WhiteElo "1969"]
[BlackElo "1850"]
[Round "8.27"]
[Result "1-0"]
[TimeControl "5400+30"]

1. e4 {[%clk 1:30:56]} 1... c5 {[%clk 1:30:56]} 2. c3 {[%clk 1:31:15]} 2... d5
{[%clk 1:31:23]} 3. exd5 {[%clk 1:31:41]} 3... Qxd5 {[%clk 1:31:51]} 4. d4
{[%clk 1:32:07]} 4... Nc6 {[%clk 1:32:18]} 5. Nf3 {[%clk 1:32:33]} 5... Nf6
{[%clk 1:32:39]} 6. Be3 {[%clk 1:32:35]} 6... e6 7. Na3 {[%clk 1:32:35]} 7...
cxd4 {[%clk 1:32:18]} 8. Nb5 {[%clk 1:33:01]} 8... Qd7 {[%clk 1:32:45]} 9. Nbxd4
{[%clk 1:33:27]} 9... Nd5 {[%clk 1:32:23]} 10. Nxc6 {[%clk 1:32:37]} 10... Nxe3
{[%clk 1:29:42]} 11. fxe3 {[%clk 1:27:08]} 11... Qxd1+ {[%clk 1:15:34]} 12. Rxd1
{[%clk 1:27:20]} 12... bxc6 {[%clk 1:15:57]} 13. Ne5 {[%clk 1:20:25]} 13... Bc5
{[%clk 1:07:39]} 14. Kf2 Bb7 {[%clk 1:03:53]} 15. Bc4 {[%clk 1:00:01]} 15... Be7
{[%clk 1:03:20]} 16. Be2 {[%clk 0:46:06]} 16... f6 {[%clk 1:00:12]} 17. Nc4
{[%clk 0:46:25]} 17... c5 {[%clk 0:59:31]} 18. Bf3 {[%clk 0:44:41]} 18... Bxf3
{[%clk 0:50:09]} 19. Kxf3 {[%clk 0:44:10]} 19... Kf7 {[%clk 0:47:24]} 20. Rd7
{[%clk 0:39:14]} 20... Rhd8 {[%clk 0:47:45]} 21. Rc7 {[%clk 0:38:41]} 21... Ke8
{[%clk 0:45:48]} 22. Rc6 {[%clk 0:38:24]} 22... Kf7 {[%clk 0:44:47]} 23. Ke2
{[%clk 0:36:24]} 23... Rac8 {[%clk 0:44:04]} 24. Ra6 {[%clk 0:36:29]} 24... Rc7
{[%clk 0:42:30]} 25. e4 {[%clk 0:36:03]} 25... Rb7 {[%clk 0:36:27]} 26. Rf1
{[%clk 0:32:14]} 26... Bf8 {[%clk 0:31:06]} 27. b3 {[%clk 0:28:55]} 27... Ke7
{[%clk 0:30:17]} 28. Na5 {[%clk 0:29:02]} 28... Rc7 {[%clk 0:24:30]} 29. Nc6+
{[%clk 0:28:46]} 29... Rxc6 {[%clk 0:24:56]} 30. Rxc6 {[%clk 0:29:14]} 30... Kf7
{[%clk 0:25:15]} 31. Rd1 {[%clk 0:29:33]} 31... Ra8 {[%clk 0:25:40]} 32. Rd7+
{[%clk 0:29:57]} 32... Kg6 {[%clk 0:24:53]} 33. Ra6 {[%clk 0:30:05]} 33... c4
{[%clk 0:23:32]} 34. Raxa7 {[%clk 0:30:08]} 34... Rb8 {[%clk 0:23:55]} 35. b4
{[%clk 0:30:17]} 35... Rb5 {[%clk 0:24:21]} 36. Ra8 {[%clk 0:30:36]} 36... Bxb4
{[%clk 0:24:44]} 37. cxb4 {[%clk 0:30:52]} 37... Rxb4 {[%clk 0:25:11]} 38. Rc8
{[%clk 0:31:14]} 38... Ra4 {[%clk 0:25:24]} 39. Rd2 {[%clk 0:31:25]} 39... c3
{[%clk 0:25:47]} 40. Rxc3 {[%clk 0:31:53]} 40... Rxe4+ {[%clk 0:26:14]} 41. Kf3
{[%clk 0:32:19]} 41... Ra4 {[%clk 0:26:38]} 42. a3 {[%clk 0:31:17]} 42... e5
{[%clk 0:27:03]} 43. Rd7 {[%clk 0:31:18]} 43... h5 {[%clk 0:27:28]} 44. g3
{[%clk 0:30:58]} 44... h4 {[%clk 0:27:44]} 45. Rb7 {[%clk 0:31:03]} 45... hxg3
{[%clk 0:27:56]} 46. hxg3 {[%clk 0:31:30]} 46... Kh6 {[%clk 0:28:24]} 47. Rb4
{[%clk 0:31:28]} 47... Ra7 {[%clk 0:28:49]} 48. a4 {[%clk 0:31:45]} 48... f5
{[%clk 0:29:07]} 49. g4 {[%clk 0:31:53]} 49... g6 {[%clk 0:29:33]} 50. gxf5
{[%clk 0:32:19]} 50... gxf5 {[%clk 0:30:00]} 51. Rc5 {[%clk 0:32:44]} 51... Re7
{[%clk 0:30:17]} 52. Rbb5 {[%clk 0:33:02]} 52... e4+ {[%clk 0:30:39]} 53. Ke3
{[%clk 0:33:27]} 53... f4+ {[%clk 0:31:01]} 54. Kxf4 {[%clk 0:33:52]} 54... e3
{[%clk 0:31:29]} 55. Re5 {[%clk 0:34:15]} 55... Ra7 {[%clk 0:31:55]} 56. a5
{[%clk 0:34:33]} 56... e2 {[%clk 0:32:20]} 57. Rxe2 {[%clk 0:34:59]} 57... Rf7+
{[%clk 0:32:47]} 58. Rf5 {[%clk 0:35:21]} 58... Rb7 {[%clk 0:33:12]} 59. Re6+
{[%clk 0:35:47]} 59... Kh7 {[%clk 0:33:31]} 60. a6 {[%clk 0:36:14]} 60... Rb4+
{[%clk 0:33:58]} 61. Kg5 {[%clk 0:35:47]} 61... Kg7 {[%clk 0:33:55]} 62. a7
{[%clk 0:36:11]} 62... Ra4 {[%clk 0:34:22]} 63. Re7+ {[%clk 0:36:37]} 63... Kg8
{[%clk 0:34:49]} 64. Rb5 {[%clk 0:37:03]} 64... Kf8 {[%clk 0:35:14]} 65. Rc7
{[%clk 0:37:28]} 65... Ra5 {[%clk 0:34:59]} 66. Rxa5 {[%clk 0:37:54]} 1-0

[Variant "Standard"]
[Site "Europe Echecs"]

[Event "Championnat du monde jeunes U12"]
[Date "2024.11.23"]
[White "Berdashkevich, Makar"]
[Black "Sun, Kevin"]
[WhiteElo "1848"]
[BlackElo "1966"]
[Round "8.28"]
[Result "0-1"]
[TimeControl "5400+30"]

1. e4 {[%clk 1:28:43]} 1... c5 {[%clk 1:30:57]} 2. Nf3 {[%clk 1:28:17]} 2... d6
{[%clk 1:31:22]} 3. d4 {[%clk 1:28:35]} 3... cxd4 {[%clk 1:31:48]} 4. Nxd4
{[%clk 1:28:55]} 4... Nf6 {[%clk 1:32:13]} 5. f3 {[%clk 1:28:58]} 5... e5 {[%clk
1:32:36]} 6. Nb3 {[%clk 1:29:19]} 6... d5 {[%clk 1:32:59]} 7. Bg5 {[%clk
1:29:17]} 7... Be6 {[%clk 1:33:24]} 8. Bxf6 {[%clk 1:28:24]} 8... gxf6 {[%clk
1:33:43]} 9. exd5 {[%clk 1:28:45]} 9... Qxd5 {[%clk 1:34:07]} 10. Qxd5 {[%clk
1:28:29]} 10... Bxd5 {[%clk 1:34:33]} 11. Nc3 {[%clk 1:26:41]} 11... Be6 {[%clk
1:35:01]} 12. O-O-O {[%clk 1:25:43]} 12... Nc6 {[%clk 1:35:08]} 13. Bb5 {[%clk
1:21:42]} 13... Rc8 {[%clk 1:35:07]} 14. Nd5 {[%clk 1:06:37]} 14... f5 {[%clk
1:35:24]} 15. f4 {[%clk 1:06:11]} 15... Bh6 {[%clk 1:29:26]} 16. Kb1 {[%clk
1:02:50]} 16... a6 {[%clk 1:14:16]} 17. Bxc6+ {[%clk 0:43:27]} 17... bxc6 {[%clk
1:14:23]} 18. Nf6+ {[%clk 0:36:39]} 18... Ke7 {[%clk 1:14:29]} 19. fxe5 {[%clk
0:33:41]} 19... Bf4 {[%clk 1:09:51]} 20. g3 {[%clk 0:29:05]} 20... Bxe5 {[%clk
1:07:11]} 21. Nh5 {[%clk 0:26:19]} 21... c5 {[%clk 0:48:18]} 22. Rhf1 {[%clk
0:22:07]} 22... Rb8 {[%clk 0:32:42]} 23. Nf4 {[%clk 0:17:23]} 23... Bc4 {[%clk
0:18:46]} 24. Rfe1 {[%clk 0:15:39]} 24... f6 {[%clk 0:18:50]} 25. Kc1 {[%clk
0:09:06]} 25... Rhc8 {[%clk 0:12:13]} 26. Nd2 {[%clk 0:06:08]} 26... Bxa2 {[%clk
0:08:35]} 27. Nf3 {[%clk 0:05:42]} 27... Bf7 {[%clk 0:07:09]} 28. Nxe5 {[%clk
0:04:32]} 28... fxe5 {[%clk 0:07:35]} 29. Rxe5+ {[%clk 0:04:56]} 29... Kf6
{[%clk 0:07:45]} 30. Re3 {[%clk 0:05:08]} 30... Rb6 {[%clk 0:06:08]} 31. c3
{[%clk 0:01:22]} 31... Rcb8 {[%clk 0:06:10]} 32. Re2 {[%clk 0:01:18]} 32... Kg5
{[%clk 0:04:59]} 33. Rd7 {[%clk 0:00:54]} 33... Bc4 {[%clk 0:04:11]} 34. Rg7+
{[%clk 0:00:38]} 34... Kh6 {[%clk 0:03:18]} 35. Ree7 {[%clk 0:00:46]} 35... Bg8
{[%clk 0:03:44]} 36. Nd3 {[%clk 0:00:36]} 36... c4 {[%clk 0:02:44]} 37. Nb4
{[%clk 0:00:37]} 37... a5 {[%clk 0:02:58]} 38. Nc2 {[%clk 0:00:45]} 38... Rxb2
{[%clk 0:02:34]} 39. Rc7 {[%clk 0:00:32]} 39... Rb1+ {[%clk 0:02:26]} 40. Kd2
{[%clk 0:00:54]} 40... Rh1 {[%clk 0:01:26]} 41. Ke3 {[%clk 0:00:33]} 41... Rxh2
{[%clk 0:01:27]} 42. Nd4 {[%clk 0:00:34]} 42... Re8+ 43. Rce7 {[%clk 0:00:38]}
43... Rxe7+ {[%clk 0:01:42]} 44. Rxe7 {[%clk 0:01:06]} 44... Kg6 {[%clk
0:01:54]} 45. Ra7 {[%clk 0:01:03]} 45... Ra2 {[%clk 0:01:48]} 46. Nc6 {[%clk
0:01:14]} 46... Be6 {[%clk 0:01:56]} 47. Ra6 {[%clk 0:00:55]} 47... Kg5 {[%clk
0:01:28]} 48. Nb4 {[%clk 0:00:32]} 48... Ra3 {[%clk 0:01:41]} 49. Nc2 {[%clk
0:00:34]} 49... Rxc3+ {[%clk 0:01:55]} 50. Kd2 {[%clk 0:00:57]} 50... Rd3+
{[%clk 0:02:20]} 51. Ke1 {[%clk 0:01:09]} 51... Bf7 {[%clk 0:02:19]} 52. Rxa5
{[%clk 0:01:19]} 52... Rxg3 {[%clk 0:02:39]} 53. Kf2 {[%clk 0:01:20]} 53... Rc3
{[%clk 0:02:50]} 54. Ne3 {[%clk 0:01:43]} 54... Be6 {[%clk 0:02:48]} 55. Ra6
{[%clk 0:01:42]} 55... f4 {[%clk 0:02:59]} 56. Ra5+ {[%clk 0:00:54]} 56... Kh4
{[%clk 0:02:54]} 57. Ng2+ {[%clk 0:01:11]} 57... Kg4 {[%clk 0:03:17]} 58. Ne1
{[%clk 0:01:34]} 58... Rb3 {[%clk 0:03:29]} 59. Re5 {[%clk 0:01:18]} 59... Rb2+
{[%clk 0:03:53]} 60. Kf1 {[%clk 0:01:41]} 60... Bf5 {[%clk 0:04:10]} 61. Re7
{[%clk 0:01:07]} 61... Bd3+ {[%clk 0:04:26]} 62. Kg1 {[%clk 0:01:26]} 62... Re2
{[%clk 0:04:51]} 63. Rg7+ {[%clk 0:01:23]} 63... Bg6 {[%clk 0:04:46]} 64. Kf1
{[%clk 0:01:48]} 64... f3 {[%clk 0:04:16]} 65. Rc7 {[%clk 0:01:04]} 65... Kg3
{[%clk 0:04:27]} 66. Rg7 {[%clk 0:00:37]} 66... c3 {[%clk 0:04:41]} 67. Rg8
{[%clk 0:00:34]} 67... c2 {[%clk 0:05:04]} 68. Rc8 {[%clk 0:00:39]} 68... Rxe1+
{[%clk 0:05:23]} 69. Kxe1 {[%clk 0:01:04]} 69... f2+ {[%clk 0:05:50]} 70. Ke2
{[%clk 0:00:47]} 70... Bd3+ {[%clk 0:06:15]} 71. Ke3 {[%clk 0:01:05]} 71... f1=Q
{[%clk 0:06:34]} 72. Rg8+ {[%clk 0:01:16]} 72... Bg6 {[%clk 0:07:00]} 73. Rc8
{[%clk 0:01:13]} 73... c1=Q+ 74. Rxc1 {[%clk 0:01:37]} 74... Qd1 75. Rb1 Qxb1
{[%clk 0:07:54]} 76. Ke2 {[%clk 0:01:57]} 76... Qc1 {[%clk 0:08:20]} 0-1

[Variant "Standard"]
[Site "Europe Echecs"]

[Event "Championnat du monde jeunes U12"]
[Date "2024.11.23"]
[White "Kozhedub, Ivan"]
[Black "Zhandos, Akarys"]
[WhiteElo "1826"]
[BlackElo "1932"]
[Round "8.29"]
[Result "1-0"]
[TimeControl "5400+30"]

1. e4 {[%clk 1:30:58]} 1... c5 {[%clk 1:28:34]} 2. Nc3 {[%clk 1:30:45]} 2... Nc6
{[%clk 1:28:35]} 3. g3 {[%clk 1:30:53]} 3... g6 {[%clk 1:28:58]} 4. Bg2 {[%clk
1:31:00]} 4... Bg7 {[%clk 1:29:21]} 5. d3 {[%clk 1:31:18]} 5... d6 {[%clk
1:29:46]} 6. Nge2 {[%clk 1:30:31]} 6... Rb8 {[%clk 1:29:08]} 7. Be3 {[%clk
1:29:22]} 7... Nd4 {[%clk 1:26:25]} 8. O-O {[%clk 1:26:16]} 8... e6 {[%clk
1:26:31]} 9. Rb1 {[%clk 1:25:29]} 9... b5 {[%clk 1:25:38]} 10. b4 {[%clk
1:25:17]} 10... a6 {[%clk 1:23:46]} 11. a4 {[%clk 1:21:07]} 11... Bd7 {[%clk
1:18:40]} 12. axb5 {[%clk 1:15:42]} 12... axb5 13. bxc5 {[%clk 1:13:08]} 13...
dxc5 {[%clk 1:17:28]} 14. Bxd4 {[%clk 1:07:31]} 14... cxd4 {[%clk 1:17:50]} 15.
Na2 {[%clk 1:07:57]} 15... Ne7 {[%clk 1:17:14]} 16. c3 {[%clk 1:05:08]} 16...
dxc3 {[%clk 1:15:11]} 17. Naxc3 {[%clk 1:05:27]} 17... b4 {[%clk 1:14:49]} 18.
Na2 {[%clk 1:04:52]} 18... Qa5 {[%clk 1:14:00]} 19. Qd2 {[%clk 1:03:02]} 19...
Nc6 {[%clk 1:12:10]} 20. Rb3 {[%clk 1:02:06]} 20... O-O {[%clk 1:05:52]} 21. d4
{[%clk 0:55:18]} 21... Rfd8 {[%clk 1:01:09]} 22. Rfb1 {[%clk 0:46:26]} 22... Bf8
{[%clk 0:53:22]} 23. Nac1 {[%clk 0:32:23]} 23... Qa6 {[%clk 0:50:14]} 24. Rf3
{[%clk 0:29:07]} 24... Na5 {[%clk 0:45:51]} 25. Qa2 {[%clk 0:17:57]} 25... Qb6
{[%clk 0:45:21]} 26. Nd3 {[%clk 0:15:25]} 26... b3 {[%clk 0:43:22]} 27. Qb2
{[%clk 0:15:45]} 27... Nc4 {[%clk 0:33:55]} 28. Qc1 {[%clk 0:16:09]} 28... Rdc8
{[%clk 0:34:16]} 29. Qf4 {[%clk 0:16:13]} 29... Be8 {[%clk 0:34:36]} 30. Bh3
{[%clk 0:12:56]} 30... Bg7 {[%clk 0:23:25]} 31. d5 {[%clk 0:04:04]} 31... e5
{[%clk 0:23:15]} 32. Qc1 {[%clk 0:03:13]} 32... Rc7 {[%clk 0:23:20]} 33. Qd1
{[%clk 0:03:29]} 33... Bh6 {[%clk 0:21:35]} 34. Nxe5 {[%clk 0:00:35]} 34... Nd2
{[%clk 0:22:04]} 35. Rfxb3 {[%clk 0:00:36]} 35... Nxb3 {[%clk 0:21:02]} 36. d6
{[%clk 0:01:02]} 36... Rc5 {[%clk 0:20:54]} 37. d7 {[%clk 0:01:14]} 37... Bg5
{[%clk 0:07:51]} 38. Rxb3 {[%clk 0:01:00]} 38... Rb5 {[%clk 0:07:25]} 39.
dxe8=Q+ {[%clk 0:00:55]} 39... Rxe8 {[%clk 0:07:54]} 40. Rxb5 {[%clk 0:00:38]}
40... Qxb5 {[%clk 0:08:24]} 41. Nf3 {[%clk 0:00:45]} 41... Rd8 {[%clk 0:07:32]}
42. Qc2 {[%clk 0:00:37]} 42... Bf6 {[%clk 0:08:01]} 43. Nf4 {[%clk 0:00:53]}
43... Ra8 {[%clk 0:07:40]} 44. Bf1 {[%clk 0:00:39]} 44... Ra1 {[%clk 0:08:01]}
45. Qe2 {[%clk 0:01:03]} 45... Qxe2 {[%clk 0:07:26]} 46. Nxe2 {[%clk 0:01:28]}
46... Ra3 {[%clk 0:07:50]} 47. Kg2 {[%clk 0:01:12]} 47... g5 {[%clk 0:07:42]}
48. h3 {[%clk 0:01:16]} 48... h5 {[%clk 0:08:12]} 49. e5 {[%clk 0:01:18]} 49...
Bd8 {[%clk 0:07:44]} 50. Ned4 {[%clk 0:00:46]} 50... Bb6 {[%clk 0:07:40]} 51.
Ne2 {[%clk 0:00:44]} 51... Bd8 {[%clk 0:07:11]} 52. g4 {[%clk 0:00:44]} 52...
hxg4 {[%clk 0:06:43]} 53. hxg4 {[%clk 0:01:09]} 53... Kg7 {[%clk 0:07:03]} 54.
Ng3 {[%clk 0:01:12]} 54... Ra5 {[%clk 0:07:06]} 55. Nf5+ {[%clk 0:01:36]} 55...
Kf8 {[%clk 0:07:16]} 56. Be2 {[%clk 0:00:58]} 56... Ra4 {[%clk 0:06:40]} 57. Kg3
{[%clk 0:01:00]} 57... Ra5 {[%clk 0:06:53]} 58. Nd6 {[%clk 0:00:53]} 58... Bc7
{[%clk 0:07:02]} 59. Kg2 {[%clk 0:00:37]} 59... Ra2 60. Bd1 {[%clk 0:00:37]}
60... f6 {[%clk 0:04:06]} 61. Ne4 {[%clk 0:00:49]} 61... fxe5 {[%clk 0:04:29]}
62. Nfxg5 {[%clk 0:01:10]} 62... Ke7 {[%clk 0:04:46]} 63. Nf3 {[%clk 0:01:16]}
63... Ra1 {[%clk 0:05:12]} 64. Bb3 {[%clk 0:01:40]} 64... Ra3 {[%clk 0:05:35]}
65. Bg8 {[%clk 0:02:03]} 65... Ra8 {[%clk 0:05:58]} 66. Bh7 {[%clk 0:02:27]}
66... Rh8 {[%clk 0:05:51]} 67. Bf5 {[%clk 0:02:54]} 67... Rf8 {[%clk 0:06:19]}
68. Kg3 {[%clk 0:02:37]} 68... Ra8 {[%clk 0:06:31]} 69. g5 {[%clk 0:02:58]}
69... Kf7 {[%clk 0:06:56]} 70. g6+ {[%clk 0:02:46]} 70... Kg7 {[%clk 0:07:15]}
71. Nfg5 {[%clk 0:03:05]} 71... Bd8 {[%clk 0:06:08]} 72. Ne6+ {[%clk 0:03:28]}
72... Kg8 {[%clk 0:06:37]} 73. Nxd8 {[%clk 0:03:11]} 73... Rxd8 {[%clk 0:07:07]}
74. Kg4 {[%clk 0:03:33]} 74... Kg7 {[%clk 0:07:32]} 75. Kg5 {[%clk 0:03:57]}
75... Rd1 {[%clk 0:07:52]} 76. Ng3 {[%clk 0:04:23]} 76... Rg1 {[%clk 0:08:03]}
77. Be4 {[%clk 0:04:51]} 77... Rd1 {[%clk 0:07:57]} 78. Nf5+ {[%clk 0:04:39]}
78... Kh8 {[%clk 0:08:26]} 79. Kf6 {[%clk 0:04:58]} 79... Rg1 {[%clk 0:07:19]}
80. g7+ {[%clk 0:05:19]} 1-0

[Variant "Standard"]
[Site "Europe Echecs"]

[Event "Championnat du monde jeunes U12"]
[Date "2024.11.23"]
[White "Sobirov, Afruzbek"]
[Black "Mikolavicius, Julius"]
[WhiteElo "1928"]
[BlackElo "1746"]
[Round "8.30"]
[Result "1-0"]
[TimeControl "5400+30"]

1. e4 {[%clk 1:30:57]} 1... c5 {[%clk 1:30:51]} 2. Nf3 {[%clk 1:31:21]} 2... d6
{[%clk 1:31:16]} 3. d4 {[%clk 1:31:47]} 3... cxd4 {[%clk 1:31:42]} 4. Nxd4
{[%clk 1:32:13]} 4... Nf6 {[%clk 1:32:05]} 5. Nc3 {[%clk 1:32:38]} 5... a6
{[%clk 1:32:33]} 6. Be3 {[%clk 1:33:02]} 6... e5 {[%clk 1:32:59]} 7. Nb3 {[%clk
1:33:29]} 7... Be6 {[%clk 1:33:25]} 8. Qd2 {[%clk 1:33:53]} 8... Be7 {[%clk
1:33:51]} 9. f3 {[%clk 1:34:18]} 9... O-O {[%clk 1:34:13]} 10. Nd5 {[%clk
1:29:30]} 10... Bxd5 {[%clk 1:28:01]} 11. exd5 {[%clk 1:29:54]} 11... Nbd7
{[%clk 1:27:40]} 12. O-O-O Qc7 {[%clk 1:20:51]} 13. Kb1 {[%clk 1:27:55]} 13...
Rfc8 {[%clk 1:18:11]} 14. c4 {[%clk 1:24:08]} 14... Rab8 {[%clk 1:14:43]} 15. g4
{[%clk 1:23:36]} 15... Nb6 {[%clk 1:10:17]} 16. Rc1 {[%clk 1:20:14]} 16... Na4
{[%clk 1:05:55]} 17. g5 {[%clk 1:20:11]} 17... Nd7 {[%clk 1:05:56]} 18. h4
{[%clk 1:20:10]} 18... Nac5 {[%clk 1:05:28]} 19. Nxc5 {[%clk 1:19:25]} 19...
dxc5 {[%clk 0:59:08]} 20. h5 {[%clk 1:19:22]} 20... b5 {[%clk 0:59:09]} 21. g6
{[%clk 1:18:10]} 21... bxc4 {[%clk 0:56:30]} 22. gxf7+ {[%clk 1:18:29]} 22...
Kh8 {[%clk 0:52:53]} 23. h6 {[%clk 1:16:33]} 23... g6 {[%clk 0:51:05]} 24. Bh3
{[%clk 1:16:55]} 24... Rf8 {[%clk 0:49:46]} 25. Be6 {[%clk 1:12:40]} 25... Nb6
{[%clk 0:46:46]} 26. Bg5 {[%clk 1:01:37]} 26... Qd8 {[%clk 0:44:25]} 27. Bxe7
{[%clk 0:59:29]} 27... Qxe7 {[%clk 0:44:54]} 28. Qe3 {[%clk 0:59:47]} 28... Qf6
{[%clk 0:44:43]} 29. Qe4 {[%clk 0:59:45]} 29... Na4 {[%clk 0:43:18]} 30. Rh2
{[%clk 0:57:26]} 30... Rb4 {[%clk 0:42:15]} 31. a3 {[%clk 0:56:47]} 31... Rb5
{[%clk 0:37:53]} 32. Rxc4 {[%clk 0:56:02]} 32... Nb6 {[%clk 0:32:15]} 33. Rcc2
{[%clk 0:56:24]} 33... Rb8 {[%clk 0:32:13]} 34. Rhe2 {[%clk 0:56:41]} 34... c4
{[%clk 0:30:01]} 35. Qxe5 {[%clk 0:57:04]} 35... Qxe5 {[%clk 0:30:25]} 36. Rxe5
{[%clk 0:57:30]} 36... Na4 {[%clk 0:30:04]} 37. Bc8 {[%clk 0:57:07]} 37... Nc3+
{[%clk 0:29:09]} 38. Ka1 {[%clk 0:57:02]} 38... Rb3 {[%clk 0:28:19]} 39. f8=Q#
{[%clk 0:57:13]} 1-0

[Variant "Standard"]
[Site "Europe Echecs"]

[Event "Championnat du monde jeunes U12"]
[Date "2024.11.23"]
[White "Mai, Duc Kien"]
[Black "Matejka, Simon"]
[WhiteElo "1771"]
[BlackElo "1924"]
[Round "8.31"]
[Result "1/2-1/2"]
[TimeControl "5400+30"]

1. e4 {[%clk 1:30:57]} 1... c5 {[%clk 1:30:18]} 2. Nf3 {[%clk 1:31:15]} 2... e6
{[%clk 1:29:59]} 3. d4 {[%clk 1:31:36]} 3... cxd4 {[%clk 1:30:21]} 4. Nxd4
{[%clk 1:31:59]} 4... Nc6 {[%clk 1:30:10]} 5. Nc3 {[%clk 1:32:12]} 5... Qc7
{[%clk 1:29:43]} 6. Be2 {[%clk 1:30:03]} 6... a6 {[%clk 1:29:24]} 7. Nxc6 {[%clk
1:30:17]} 7... dxc6 {[%clk 1:27:39]} 8. Qd3 {[%clk 1:22:34]} 8... Nf6 {[%clk
1:23:30]} 9. Qg3 {[%clk 1:21:56]} 9... Qxg3 {[%clk 1:23:35]} 10. hxg3 {[%clk
1:22:22]} 10... Bb4 {[%clk 1:22:38]} 11. e5 {[%clk 1:18:53]} 11... Nd5 {[%clk
1:16:05]} 12. Bd2 {[%clk 1:15:24]} 12... Nxc3 {[%clk 1:13:14]} 13. Bxc3 {[%clk
1:05:26]} 13... Bxc3+ {[%clk 1:13:07]} 14. bxc3 {[%clk 1:05:51]} 14... b5 {[%clk
1:10:45]} 15. Bf3 {[%clk 1:05:52]} 15... Bb7 {[%clk 1:11:04]} 16. O-O-O {[%clk
1:05:38]} 16... Rd8 {[%clk 1:11:07]} 17. Rd4 {[%clk 1:03:39]} 17... Rxd4 {[%clk
1:06:15]} 18. cxd4 {[%clk 1:04:02]} 18... Kd7 {[%clk 1:06:21]} 19. Kb2 {[%clk
0:53:47]} 19... Kc7 {[%clk 1:03:05]} 20. c4 {[%clk 0:38:44]} 20... h6 {[%clk
0:57:33]} 21. Rc1 {[%clk 0:33:10]} 21... Kb6 {[%clk 0:55:00]} 22. c5+ {[%clk
0:30:00]} 22... Kc7 {[%clk 0:54:49]} 23. Be4 {[%clk 0:30:17]} 23... h5 {[%clk
0:53:00]} 24. Kc3 {[%clk 0:27:48]} 24... a5 {[%clk 0:53:01]} 25. a3 {[%clk
0:27:59]} 25... Rd8 {[%clk 0:49:39]} 26. Rd1 {[%clk 0:26:43]} 26... g6 {[%clk
0:47:50]} 1/2-1/2

[Variant "Standard"]
[Site "Europe Echecs"]

[Event "Championnat du monde jeunes U12"]
[Date "2024.11.23"]
[White "Hallmundarson, Birkir"]
[Black "Shirinov, Yashar"]
[WhiteElo "1914"]
[BlackElo "1642"]
[Round "8.32"]
[Result "1-0"]
[TimeControl "5400+30"]

1. Nf3 {[%clk 1:30:18]} 1... Nf6 {[%clk 1:30:35]} 2. c4 {[%clk 1:30:43]} 2... e6
{[%clk 1:30:49]} 3. Nc3 {[%clk 1:30:56]} 3... d5 {[%clk 1:31:13]} 4. d4 {[%clk
1:31:23]} 4... Nbd7 {[%clk 1:31:38]} 5. Bg5 {[%clk 1:31:41]} 5... Bb4 {[%clk
1:31:33]} 6. e3 {[%clk 1:30:38]} 6... c6 {[%clk 1:30:44]} 7. Qc2 {[%clk
1:28:13]} 7... Qa5 {[%clk 1:30:01]} 8. Nd2 {[%clk 1:15:24]} 8... dxc4 {[%clk
1:27:51]} 9. Bxf6 {[%clk 1:15:33]} 9... Nxf6 {[%clk 1:28:09]} 10. Nxc4 {[%clk
1:15:49]} 10... Qc7 {[%clk 1:21:44]} 11. Bd3 {[%clk 1:14:18]} 11... Bd7 {[%clk
1:18:14]} 12. O-O {[%clk 1:05:24]} 12... O-O {[%clk 1:15:24]} 13. Ne5 {[%clk
1:05:13]} 13... Bd6 {[%clk 1:10:49]} 14. f4 {[%clk 1:05:26]} 14... g6 {[%clk
1:11:11]} 15. Rac1 {[%clk 1:05:27]} 15... Nd5 {[%clk 0:59:43]} 16. Qe2 {[%clk
1:04:24]} 16... Nxc3 {[%clk 0:55:23]} 17. bxc3 {[%clk 1:03:27]} 17... f6 {[%clk
0:51:51]} 18. Nc4 {[%clk 1:03:33]} 18... Be7 {[%clk 0:52:11]} 19. e4 {[%clk
1:00:49]} 19... b5 {[%clk 0:51:54]} 20. Ne3 {[%clk 1:01:11]} 20... e5 {[%clk
0:52:18]} 21. f5 {[%clk 1:01:24]} 21... exd4 {[%clk 0:52:20]} 22. cxd4 {[%clk
1:01:41]} 22... Qb6 {[%clk 0:52:30]} 23. Qb2 {[%clk 1:00:40]} 23... c5 {[%clk
0:50:22]} 24. Nd5 {[%clk 1:00:48]} 24... Qd8 {[%clk 0:50:43]} 25. dxc5 {[%clk
1:00:17]} 25... Bxf5 {[%clk 0:50:40]} 26. Qxb5 {[%clk 0:56:43]} 26... Be6 {[%clk
0:49:56]} 27. Bc4 {[%clk 0:56:16]} 27... Kg7 {[%clk 0:46:29]} 28. Rfd1 {[%clk
0:40:55]} 28... Bxd5 {[%clk 0:44:00]} 29. Rxd5 {[%clk 0:31:24]} 29... Qc7 {[%clk
0:43:50]} 30. Qd7 {[%clk 0:24:52]} 30... Rac8 {[%clk 0:43:51]} 31. Ba6 {[%clk
0:24:36]} 31... Rfd8 {[%clk 0:41:11]} 32. Bxc8 {[%clk 0:13:33]} 32... Rxd7
{[%clk 0:41:20]} 33. Rxd7 {[%clk 0:14:01]} 33... Qe5 {[%clk 0:40:49]} 34. c6
{[%clk 0:14:05]} 34... Kh6 {[%clk 0:41:16]} 35. c7 {[%clk 0:13:32]} 35... Bd6
{[%clk 0:41:40]} 36. Rxd6 {[%clk 0:13:40]} 36... Qxd6 {[%clk 0:40:13]} 37. Bg4
{[%clk 0:13:06]} 37... f5 {[%clk 0:40:31]} 38. Bxf5 {[%clk 0:12:34]} 38... gxf5
{[%clk 0:40:13]} 39. c8=Q {[%clk 0:12:56]} 1-0

[Variant "Standard"]
[Site "Europe Echecs"]